[Event "Austrian Championship Boys-U12 2024"]
[Site "Fuerstenfeld"]
[Date "2024.06.01"]
[Round "5.4"]
[White "Perfler, Daniel"]
[Black "Schernthaner, Tim"]
[Result "0-1"]
[ECO "B43"]
[WhiteElo "1623"]
[BlackElo "1538"]
[Annotator "NA RC"]
[PlyCount "94"]
[EventDate "2024.05.28"]
[EventType "swiss"]
[EventCountry "AUT"]
[SourceTitle "playchess.com"]
[Source "ChessBase"]
[SourceQuality "1"]
[TimeControl "5400+30"]

1. e4 {[%emt 0:00:12]} c5 {[%emt 0:00:07]} 2. Nf3 {[%emt 0:00:05]} e6 {[%emt 0:00:13]} 3. d4 {[%emt 0:00:05]} cxd4 {[%emt 0:00:06]} 4. Nxd4 {[%emt 0:00:01]} a6 {[%emt 0:00:07]} 5. Nc3 {[%emt 0:00:09]} Qc7 {[%emt 0:00:07]} 6. Bd3 {[%emt 0:00:15]} Bd6 {[%emt 0:00:09]} 7. Be3 {[%emt 0:04:50]} Nf6 {[%emt 0:01:41]} 8. g3 {[%emt 0:05:46]} Nc6 {[%emt 0:02:03]} 9. f4 {[%emt 0:03:40]} e5 {[%emt 0:01:04]} 10. Nde2 {[%emt 0:10:27]} Ng4 {[%emt 0:01:05]} 11. Bd2 {[%emt 0:06:26]} Qb6 {[%emt 0:01:35]} 12. Nd4 {[%emt 0:11:51]} Nxd4 {[%emt 0:09:18]} 13. Na4 {[%emt 0:01:21]} Nxc2+ {[%emt 0:00:33]} 14. Qxc2 {[%emt 0:02:26]} Qf2+ {[%emt 0:00:15]} 15. Kd1 {[%emt 0:00:10]} Qf3+ {[%emt 0:00:15]} 16. Kc1 {[%emt 0:01:58]} Qxh1+ {[%emt 0:00:08]} 17. Qd1 {[%emt 0:00:13]} Qxd1+ {[%emt 0:00:07]} 18. Kxd1 {[%emt 0:00:01]} Nf2+ {[%emt 0:00:16]} 19. Ke2 {[%emt 0:00:16]} Nxd3 {[%emt 0:00:04]} 20. Kxd3 {[%emt 0:00:01]} b5 {[%emt 0:00:34]} 21. Nb6 {[%emt 0:00:16]} Rb8 {[%emt 0:00:12]} 22. Rc1 {[%emt 0:00:44]} Bb7 {[%emt 0:00:16]} 23. f5 {[%emt 0:01:32]} Ke7 {[%emt 0:00:32]} 24. Ba5 {[%emt 0:02:42]} Bc6 {[%emt 0:00:34]} 25. g4 {[%emt 0:01:15]} g6 {[%emt 0:00:57]} 26. Rc2 {[%emt 0:02:03]} gxf5 {[%emt 0:00:33]} 27. gxf5 {[%emt 0:00:40]} Rhg8 {[%emt 0:00:29]} 28. Rd2 {[%emt 0:00:44]} Rg4 {[%emt 0:00:45]} 29. Re2 {[%emt 0:00:09]} Bc5 {[%emt 0:00:33]} 30. Nd5+ {[%emt 0:00:33]} Bxd5 {[%emt 0:00:06]} 31. exd5 {[%emt 0:00:02]} Rd4+ {[%emt 0:00:15]} 32. Kc3 {[%emt 0:00:20]} b4+ {[%emt 0:00:09]} 33. Kb3 {[%emt 0:00:56]} Rb5 {[%emt 0:00:49]} 34. Bc7 {[%emt 0:00:19]} d6 {[%emt 0:00:11]} 35. Rg2 {[%emt 0:00:53]} Rxd5 {[%emt 0:00:19]} 36. Rg7 {[%emt 0:01:34]} e4 {[%emt 0:00:27]} 37. Rg5 {[%emt 0:02:10]} Bf2 {[%emt 0:00:44]} 38. Rg4 {[%emt 0:00:39]} e3 {[%emt 0:00:21]} 39. Re4+ {[%emt 0:00:16]} Re5 {[%emt 0:00:08]} 40. Rd4 {[%emt 0:01:10]} Rbd5 {[%emt 0:00:26]} 41. Rxb4 {[%emt 0:00:22]} e2 {[%emt 0:00:12]} 42. Rb7 {[%emt 0:00:14]} Rb5+ {[%emt 0:00:04]} 43. Rxb5 {[%emt 0:00:09]} Rxb5+ {[%emt 0:00:03]} 44. Ka3 {[%emt 0:00:22]} e1=Q {[%emt 0:00:08]} 45. b3 {[%emt 0:00:20]} Be3 {[%emt 0:00:29]} 46. Ba5 {[%emt 0:00:33]} Bc1+ {[%emt 0:00:08]} 47. Ka4 {[%emt 0:00:06]} Qxa5# {[%emt 0:00:05]} 0-1

[Event "Austrian Championship Boys-U12 2024"]
[Site "Fuerstenfeld"]
[Date "2024.06.01"]
[Round "5.5"]
[White "Seikmann, Jim"]
[Black "Schinwald, Florian"]
[Result "1-0"]
[ECO "A20"]
[WhiteElo "1612"]
[BlackElo "1521"]
[Annotator "NA RC"]
[PlyCount "91"]
[EventDate "2024.05.28"]
[EventType "swiss"]
[EventCountry "AUT"]
[SourceTitle "playchess.com"]
[Source "ChessBase"]
[SourceQuality "1"]
[TimeControl "5400+30"]

1. c4 {[%emt 0:00:02]} e5 {[%emt 0:00:03]} 2. g3 {[%emt 0:00:10]} c6 {[%emt 0:00:04]} 3. d4 {[%emt 0:00:14]} e4 {[%emt 0:00:06]} 4. a3 {[%emt 0:00:21]} a5 {[%emt 0:01:28]} 5. Nc3 {[%emt 0:01:24]} d5 {[%emt 0:01:35]} 6. cxd5 {[%emt 0:01:45]} cxd5 {[%emt 0:03:05]} 7. Qb3 {[%emt 0:01:59]} Nc6 {[%emt 0:08:07]} 8. e3 {[%emt 0:10:50]} Nf6 {[%emt 0:03:14]} 9. Nge2 {[%emt 0:01:48]} Rb8 {[%emt 0:19:15]} 10. Nf4 {[%emt 0:04:36]} Ne7 {[%emt 0:02:45]} 11. Bb5+ {[%emt 0:10:11]} Bd7 {[%emt 0:03:55]} 12. Qa4 {[%emt 0:08:28]} Bc6 {[%emt 0:04:08]} 13. O-O {[%emt 0:06:04]} g5 {[%emt 0:05:08]} 14. Nfe2 {[%emt 0:04:55]} h5 {[%emt 0:02:34]} 15. f4 {[%emt 0:08:29]} g4 {[%emt 0:04:48]} 16. Kg2 {[%emt 0:02:23]} Qd6 {[%emt 0:07:12]} 17. Qxa5 {[%emt 0:03:55]} Nd7 {[%emt 0:03:36]} 18. Qa4 {[%emt 0:02:27]} f5 {[%emt 0:01:34]} 19. Qb3 {[%emt 0:01:46]} Qh6 {[%emt 0:02:31]} 20. Bd2 {[%emt 0:01:58]} Bg7 {[%emt 0:01:53]} 21. Rac1 {[%emt 0:02:07]} Kf7 {[%emt 0:01:58]} 22. Rh1 {[%emt 0:02:50]} Rh7 {[%emt 0:02:08]} 23. Na4 {[%emt 0:01:54]} Rbh8 {[%emt 0:02:11]} 24. Bxc6 {[%emt 0:01:33]} bxc6 {[%emt 0:00:51]} 25. Qb7 {[%emt 0:01:12]} Nf8 {[%emt 0:06:43]} 26. Bb4 {[%emt 0:01:05]} Nfg6 {[%emt 0:00:33]} 27. Rxc6 {[%emt 0:01:41]} Bf6 {[%emt 0:01:12]} 28. Qd7 {[%emt 0:01:59]} Nf8 {[%emt 0:00:37]} 29. Qb7 {[%emt 0:00:47]} Kg8 {[%emt 0:01:10]} 30. Bxe7 {[%emt 0:02:28]} Rxe7 {[%emt 0:00:45]} 31. Qxe7 {[%emt 0:00:41]} Bxe7 {[%emt 0:00:11]} 32. Rxh6 {[%emt 0:00:07]} Rxh6 {[%emt 0:00:05]} 33. Rc1 {[%emt 0:01:31]} Ra6 {[%emt 0:01:37]} 34. Nc5 {[%emt 0:00:53]} Rb6 {[%emt 0:00:38]} 35. b4 {[%emt 0:00:20]} Kf7 {[%emt 0:01:26]} 36. Nc3 {[%emt 0:01:03]} Rd6 {[%emt 0:00:45]} 37. a4 {[%emt 0:01:13]} Ne6 {[%emt 0:00:34]} 38. Ra1 {[%emt 0:01:13]} Nxc5 {[%emt 0:01:26]} 39. dxc5 {[%emt 0:00:35]} Rd8 {[%emt 0:00:09]} 40. a5 {[%emt 0:01:09]} Ke6 {[%emt 0:00:14]} 41. Nb5 {[%emt 0:01:15]} Kd7 {[%emt 0:00:20]} 42. Nd4 {[%emt 0:00:51]} Rb8 {[%emt 0:01:09]} 43. c6+ {[%emt 0:01:26]} Kc7 {[%emt 0:00:27]} 44. b5 {[%emt 0:00:41]} Bf6 {[%emt 0:01:42]} 45. b6+ {[%emt 0:01:37]} Kc8 {[%emt 0:01:13]} 46. Rb1 {[%emt 0:01:21]} 1-0

[Event "Austrian Championship Boys-U12 2024"]
[Site "Fuerstenfeld"]
[Date "2024.06.01"]
[Round "5.6"]
[White "Wu, Lucas"]
[Black "Rella, Mario"]
[Result "0-1"]
[ECO "C41"]
[WhiteElo "1453"]
[BlackElo "1582"]
[Annotator "NA RC"]
[PlyCount "72"]
[EventDate "2024.05.28"]
[EventType "swiss"]
[EventCountry "AUT"]
[SourceTitle "playchess.com"]
[Source "ChessBase"]
[SourceQuality "1"]
[TimeControl "5400+30"]

1. e4 {[%emt 0:00:01]} e5 {[%emt 0:02:10]} 2. Nf3 {[%emt 0:00:07]} d6 {[%emt 0:00:32]} 3. Bc4 {[%emt 0:01:34]} Nf6 {[%emt 0:00:10]} 4. Nc3 {[%emt 0:00:14]} Be7 {[%emt 0:01:32]} 5. O-O {[%emt 0:00:13]} O-O {[%emt 0:00:35]} 6. d4 {[%emt 0:00:06]} exd4 {[%emt 0:00:49]} 7. Nxd4 {[%emt 0:00:08]} c5 {[%emt 0:02:02]} 8. Nf3 {[%emt 0:00:41]} Bg4 {[%emt 0:00:37]} 9. h3 {[%emt 0:01:44]} Bh5 {[%emt 0:00:48]} 10. Bf4 {[%emt 0:01:09]} Nc6 {[%emt 1:26:15]} 11. Qe2 {[%emt 0:01:24]} Nd4 {[%emt 0:00:00]} 12. Qe3 {[%emt 0:00:24]} Nxc2 {[%emt 0:00:00]} 13. Qd3 {[%emt 0:00:21]} Nxa1 {[%emt 0:00:00]} 14. Rxa1 {[%emt 0:00:05]} a6 {[%emt 0:00:00]} 15. Nd5 {[%emt 0:01:12]} b5 {[%emt 0:00:00]} 16. Nxf6+ {[%emt 0:02:26]} Bxf6 {[%emt 0:00:00]} 17. Bd5 {[%emt 0:00:35]} Rc8 {[%emt 0:00:00]} 18. Bb7 {[%emt 0:01:07]} Rc7 {[%emt 0:00:00]} 19. Bxa6 {[%emt 0:00:14]} b4 {[%emt 0:00:00]} 20. Rd1 {[%emt 0:01:12]} Bd4 {[%emt 0:00:00]} 21. g4 {[%emt 0:07:20]} Bg6 {[%emt 0:00:00]} 22. Nxd4 {[%emt 0:01:08]} cxd4 {[%emt 0:00:00]} 23. Qxd4 {[%emt 0:00:08]} Rc6 {[%emt 0:00:00]} 24. Bb5 {[%emt 0:01:33]} Rc5 {[%emt 0:00:00]} 25. Ba4 {[%emt 0:00:13]} Ra5 {[%emt 0:00:00]} 26. Qxb4 {[%emt 0:01:53]} Qa8 {[%emt 0:00:00]} 27. Bc6 {[%emt 0:03:59]} Qxc6 {[%emt 0:00:00]} 28. Qxa5 {[%emt 0:00:08]} Qxe4 {[%emt 0:00:00]} 29. Bxd6 {[%emt 0:00:15]} Qf3 {[%emt 0:00:00]} 30. Qe1 {[%emt 0:04:43]} Be4 {[%emt 0:00:00]} 31. Kf1 {[%emt 0:05:00]} Qxh3+ {[%emt 0:00:00]} 32. Ke2 {[%emt 0:00:11]} Qf3+ {[%emt 0:00:00]} 33. Kf1 {[%emt 0:00:29]} Re8 {[%emt 0:00:00]} 34. Be7 {[%emt 0:04:54]} Bd3+ {[%emt 0:00:00]} 35. Rxd3 {[%emt 0:00:23]} Qxd3+ {[%emt 0:00:00]} 36. Kg1 {[%emt 0:00:08]} Qd7 {[%emt 0:00:00]} 0-1

[Event "Austrian Championship Boys-U12 2024"]
[Site "Fuerstenfeld"]
[Date "2024.06.01"]
[Round "5.7"]
[White "Slavskyi, Maksym"]
[Black "Koch, Paul"]
[Result "1-0"]
[ECO "D37"]
[WhiteElo "1660"]
[BlackElo "1659"]
[Annotator "NA RC"]
[PlyCount "69"]
[EventDate "2024.05.28"]
[EventType "swiss"]
[EventCountry "AUT"]
[SourceTitle "playchess.com"]
[Source "ChessBase"]
[SourceQuality "1"]
[TimeControl "5400+30"]

1. d4 {[%emt 0:02:32]} d5 {[%emt 0:00:02]} 2. c4 {[%emt 0:00:04]} e6 {[%emt 0:00:05]} 3. Nc3 {[%emt 0:00:04]} Nf6 {[%emt 0:00:04]} 4. Nf3 {[%emt 0:00:08]} Be7 {[%emt 0:00:05]} 5. e3 {[%emt 0:00:04]} O-O {[%emt 0:00:09]} 6. Bd3 {[%emt 0:00:04]} Nbd7 {[%emt 0:00:11]} 7. O-O {[%emt 0:00:03]} a6 {[%emt 0:00:07]} 8. a4 {[%emt 0:00:43]} c5 {[%emt 0:01:16]} 9. Bc2 {[%emt 1:31:18]} b6 {[%emt 0:01:03]} 10. cxd5 {[%emt 0:00:00]} exd5 {[%emt 0:00:18]} 11. Bb3 {[%emt 0:00:00]} Bb7 {[%emt 0:01:26]} 12. Re1 {[%emt 0:00:00]} Re8 {[%emt 0:00:59]} 13. Ne5 {[%emt 0:00:00]} c4 {[%emt 0:03:57]} 14. Bc2 {[%emt 0:00:00]} Qc7 {[%emt 0:00:48]} 15. f4 {[%emt 0:00:00]} Rad8 {[%emt 0:02:15]} 16. Rf1 {[%emt 0:00:00]} Bd6 {[%emt 0:04:51]} 17. Rf3 {[%emt 0:00:00]} Qc8 {[%emt 0:06:46]} 18. Ne2 {[%emt 0:00:00]} Ne4 {[%emt 0:00:54]} 19. Nc3 {[%emt 0:00:00]} f6 {[%emt 0:01:06]} 20. Ng4 {[%emt 0:00:00]} Nxc3 {[%emt 0:01:31]} 21. bxc3 {[%emt 0:00:00]} Nf8 {[%emt 0:01:50]} 22. Rg3 {[%emt 0:00:00]} Kh8 {[%emt 0:01:01]} 23. h4 {[%emt 0:00:00]} Qd7 {[%emt 0:03:53]} 24. h5 {[%emt 0:07:30]} h6 {[%emt 1:07:53]} 25. Rb1 {[%emt 0:00:00]} b5 {[%emt 0:00:00]} 26. axb5 {[%emt 0:00:00]} axb5 {[%emt 0:00:00]} 27. Rxb5 {[%emt 0:00:00]} Qxb5 {[%emt 0:00:00]} 28. Nxh6 {[%emt 0:00:00]} Qd7 {[%emt 0:02:00]} 29. Nf5 {[%emt 0:02:30]} Qf7 {[%emt 0:00:30]} 30. Rxg7 {[%emt 0:00:30]} Qxg7 {[%emt 0:00:00]} 31. Nxg7 {[%emt 0:00:00]} Kxg7 {[%emt 0:00:00]} 32. Qg4+ {[%emt 0:00:00]} Kf7 {[%emt 0:00:00]} 33. h6 {[%emt 0:00:00]} Nd7 {[%emt 0:00:00]} 34. Qg7+ {[%emt 0:00:00]} Ke6 {[%emt 0:00:00]} 35. f5# {[%emt 0:02:30]} 1-0

[Event "Austrian Championship Boys-U12 2024"]
[Site "Fuerstenfeld"]
[Date "2024.06.01"]
[Round "6.1"]
[White "Pleimer, Noah"]
[Black "Feiertag, Niklas"]
[Result "1/2-1/2"]
[ECO "B31"]
[WhiteElo "1836"]
[BlackElo "1577"]
[Annotator "NA RC"]
[PlyCount "66"]
[EventDate "2024.05.28"]
[EventType "swiss"]
[EventCountry "AUT"]
[SourceTitle "playchess.com"]
[Source "ChessBase"]
[SourceQuality "1"]
[TimeControl "5400+30"]

1. e4 {[%emt 0:00:01]} c5 {[%emt 0:00:06]} 2. Nf3 {[%emt 0:00:05]} Nc6 {[%emt 0:00:05]} 3. Bb5 {[%emt 0:00:04]} e6 {[%emt 0:00:08]} 4. O-O {[%emt 0:00:25]} Nge7 {[%emt 0:00:36]} 5. Re1 {[%emt 0:00:26]} g6 {[%emt 0:02:00]} 6. c3 {[%emt 0:00:53]} Bg7 {[%emt 0:01:45]} 7. d4 {[%emt 0:01:01]} cxd4 {[%emt 0:00:25]} 8. cxd4 {[%emt 0:00:21]} Qb6 {[%emt 0:01:06]} 9. Bxc6 {[%emt 0:01:21]} bxc6 {[%emt 1:28:49]} 10. Nc3 {[%emt 0:01:42]} O-O {[%emt 0:00:00]} 11. Qc2 {[%emt 0:05:36]} d5 {[%emt 0:00:00]} 12. Bf4 {[%emt 0:02:12]} dxe4 {[%emt 0:00:00]} 13. Nxe4 {[%emt 0:01:16]} Nf5 {[%emt 0:00:00]} 14. Rad1 {[%emt 0:03:31]} Rd8 {[%emt 0:00:00]} 15. Bg5 {[%emt 0:07:16]} Nxd4 {[%emt 0:00:00]} 16. Nxd4 {[%emt 0:01:04]} Rxd4 {[%emt 0:00:00]} 17. Nf6+ {[%emt 0:02:10]} Kh8 {[%emt 0:00:00]} 18. Rxd4 {[%emt 0:00:59]} Qxd4 {[%emt 0:00:00]} 19. Rd1 {[%emt 0:08:26]} Qb6 {[%emt 0:00:00]} 20. Qb3 {[%emt 0:15:12]} Ba6 {[%emt 0:00:00]} 21. Qh3 {[%emt 0:01:00]} h5 {[%emt 0:00:00]} 22. Qf3 {[%emt 0:10:00]} Qxb2 {[%emt 0:00:00]} 23. Qxc6 {[%emt 0:02:58]} Bb7 {[%emt 0:00:00]} 24. Qd7 {[%emt 0:00:29]} Bxf6 {[%emt 0:00:00]} 25. Bxf6+ {[%emt 0:00:05]} Qxf6 {[%emt 0:00:00]} 26. Qxb7 {[%emt 0:00:04]} Rd8 {[%emt 0:00:00]} 27. Rxd8+ {[%emt 0:00:14]} Qxd8 {[%emt 0:00:00]} 28. h3 {[%emt 0:00:25]} Qb6 {[%emt 0:00:00]} 29. Qxf7 {[%emt 0:00:34]} Qb1+ {[%emt 0:00:00]} 30. Kh2 {[%emt 0:00:06]} Qxa2 {[%emt 0:00:00]} 31. Qf8+ {[%emt 0:01:13]} Kh7 {[%emt 0:00:00]} 32. Qf7+ {[%emt 0:00:04]} Kh6 {[%emt 0:00:00]} 33. Qf8+ {[%emt 0:00:11]} Kh7 {[%emt 0:12:00]} 1/2-1/2

[Event "Austrian Championship Boys-U12 2024"]
[Site "Fuerstenfeld"]
[Date "2024.06.01"]
[Round "6.2"]
[White "Schernthaner, Tim"]
[Black "Chen, Chicheng Leon"]
[Result "0-1"]
[ECO "B80"]
[WhiteElo "1538"]
[BlackElo "1827"]
[Annotator "NA RC"]
[PlyCount "56"]
[EventDate "2024.05.28"]
[EventType "swiss"]
[EventCountry "AUT"]
[SourceTitle "playchess.com"]
[Source "ChessBase"]
[SourceQuality "1"]
[TimeControl "5400+30"]

1. e4 {[%emt 0:00:03]} c5 {[%emt 0:00:04]} 2. Nf3 {[%emt 0:00:06]} e6 {[%emt 0:00:03]} 3. d4 {[%emt 0:00:05]} cxd4 {[%emt 0:00:04]} 4. Nxd4 {[%emt 0:00:07]} Nf6 {[%emt 0:00:04]} 5. Nc3 {[%emt 0:00:05]} d6 {[%emt 0:00:03]} 6. Be3 {[%emt 0:00:56]} Be7 {[%emt 0:00:05]} 7. Bd3 {[%emt 0:00:09]} a6 {[%emt 0:00:11]} 8. Qd2 {[%emt 0:01:15]} Qc7 {[%emt 0:00:12]} 9. f3 {[%emt 0:01:51]} h5 {[%emt 0:00:13]} 10. Rg1 {[%emt 0:07:58]} b5 {[%emt 0:03:35]} 11. g4 {[%emt 0:04:11]} hxg4 {[%emt 0:00:43]} 12. fxg4 {[%emt 0:00:12]} Bb7 {[%emt 0:04:20]} 13. g5 {[%emt 0:02:39]} b4 {[%emt 0:02:51]} 14. Na4 {[%emt 0:10:06]} Nxe4 {[%emt 0:00:33]} 15. Qxb4 {[%emt 0:02:01]} Nd7 {[%emt 0:01:10]} 16. Nf3 {[%emt 0:01:57]} d5 {[%emt 0:02:09]} 17. Qb3 {[%emt 0:03:03]} Rb8 {[%emt 0:02:46]} 18. Ba7 {[%emt 0:05:54]} Ra8 {[%emt 0:00:31]} 19. Bd4 {[%emt 0:03:36]} e5 {[%emt 0:01:59]} 20. Bxe4 {[%emt 0:01:38]} dxe4 {[%emt 0:00:50]} 21. Bxe5 {[%emt 0:00:54]} Nxe5 {[%emt 0:07:33]} 22. Nxe5 {[%emt 0:00:09]} Bd6 {[%emt 0:02:35]} 23. Nc4 {[%emt 0:03:32]} Bxh2 {[%emt 0:00:48]} 24. Rg2 {[%emt 0:14:24]} Bf4 {[%emt 0:03:12]} 25. Ke2 {[%emt 0:01:18]} e3 {[%emt 0:02:02]} 26. Nab6 {[%emt 0:06:14]} Bxg2 {[%emt 0:00:31]} 27. Nxa8 {[%emt 0:01:30]} Bxa8 {[%emt 0:00:15]} 28. Qa4+ {[%emt 0:00:21]} Qc6 {[%emt 0:04:54]} 0-1

[Event "Austrian Championship Boys-U12 2024"]
[Site "Fuerstenfeld"]
[Date "2024.06.01"]
[Round "6.3"]
[White "Keller, Niklas"]
[Black "Radnaev, Leo"]
[Result "0-1"]
[ECO "E97"]
[WhiteElo "1710"]
[BlackElo "1879"]
[Annotator "NA RC"]
[PlyCount "76"]
[EventDate "2024.05.28"]
[EventType "swiss"]
[EventCountry "AUT"]
[SourceTitle "playchess.com"]
[Source "ChessBase"]
[SourceQuality "1"]
[TimeControl "5400+30"]

1. d4 {[%emt 0:00:03]} Nf6 {[%emt 0:00:03]} 2. c4 {[%emt 0:00:14]} g6 {[%emt 0:00:04]} 3. Nc3 {[%emt 0:00:14]} Bg7 {[%emt 0:00:06]} 4. e4 {[%emt 0:00:18]} d6 {[%emt 0:00:03]} 5. Be2 {[%emt 0:00:49]} O-O {[%emt 0:00:20]} 6. Nf3 {[%emt 0:00:09]} e5 {[%emt 0:00:07]} 7. O-O {[%emt 0:00:25]} Nc6 {[%emt 0:00:03]} 8. d5 {[%emt 0:02:37]} Ne7 {[%emt 0:00:11]} 9. h3 {[%emt 0:00:43]} a5 {[%emt 0:02:24]} 10. Be3 {[%emt 0:02:59]} Nd7 {[%emt 0:01:30]} 11. a3 {[%emt 0:04:18]} h6 {[%emt 0:02:28]} 12. Qd2 {[%emt 0:01:36]} Kh7 {[%emt 0:00:24]} 13. Qc2 {[%emt 0:00:56]} f5 {[%emt 0:02:27]} 14. b4 {[%emt 0:01:20]} f4 {[%emt 0:00:34]} 15. Bd2 {[%emt 0:00:24]} g5 {[%emt 0:00:28]} 16. Nh2 {[%emt 0:00:34]} Kg6 {[%emt 0:08:00]} 17. g4 {[%emt 0:08:46]} fxg3 {[%emt 0:01:10]} 18. fxg3 {[%emt 0:00:18]} Nf6 {[%emt 0:03:00]} 19. Kg2 {[%emt 0:01:13]} axb4 {[%emt 0:01:58]} 20. axb4 {[%emt 0:00:17]} Rxa1 {[%emt 0:00:04]} 21. Rxa1 {[%emt 0:00:13]} Kh7 {[%emt 0:00:19]} 22. Rf1 {[%emt 0:09:23]} Ng6 {[%emt 0:05:55]} 23. Qd1 {[%emt 0:01:27]} Kh8 {[%emt 0:04:28]} 24. Ng4 {[%emt 0:02:44]} Qd7 {[%emt 0:01:08]} 25. Rh1 {[%emt 0:00:54]} Qf7 {[%emt 0:03:07]} 26. Rf1 {[%emt 0:01:55]} Qd7 {[%emt 0:00:15]} 27. Rh1 {[%emt 0:00:20]} Qe7 {[%emt 0:10:25]} 28. Nxf6 {[%emt 0:02:23]} Bxf6 {[%emt 0:05:55]} 29. Bg4 {[%emt 0:01:08]} b6 {[%emt 0:13:29]} 30. Bxc8 {[%emt 0:00:56]} Rxc8 {[%emt 0:00:10]} 31. Qg4 {[%emt 0:02:11]} Ra8 {[%emt 0:11:28]} 32. h4 {[%emt 0:03:50]} Kg7 {[%emt 0:05:27]} 33. hxg5 {[%emt 0:01:17]} Bxg5 {[%emt 0:00:39]} 34. Bxg5 {[%emt 0:00:38]} hxg5 {[%emt 0:03:20]} 35. Rh5 {[%emt 0:01:04]} Ra3 {[%emt 0:03:46]} 36. Rxg5 {[%emt 0:00:46]} Qf6 {[%emt 0:03:49]} 37. Nb5 {[%emt 0:01:03]} Ra2+ {[%emt 0:00:19]} 38. Kh3 {[%emt 0:00:09]} Qf1# {[%emt 0:00:11]} 0-1

[Event "Austrian Championship Boys-U12 2024"]
[Site "Fuerstenfeld"]
[Date "2024.06.01"]
[Round "6.4"]
[White "Rella, Mario"]
[Black "Seikmann, Jim"]
[Result "0-1"]
[ECO "A80"]
[WhiteElo "1582"]
[BlackElo "1612"]
[Annotator "NA RC"]
[PlyCount "28"]
[EventDate "2024.05.28"]
[EventType "swiss"]
[EventCountry "AUT"]
[SourceTitle "playchess.com"]
[Source "ChessBase"]
[SourceQuality "1"]
[TimeControl "5400+30"]

1. d4 {[%emt 0:00:03]} f5 {[%emt 0:00:13]} 2. Bg5 {[%emt 0:00:13]} h6 {[%emt 0:00:10]} 3. Bh4 {[%emt 0:00:06]} c5 {[%emt 0:00:05]} 4. e3 {[%emt 0:01:28]} Qb6 {[%emt 0:00:07]} 5. Nc3 {[%emt 0:07:06]} cxd4 {[%emt 0:00:45]} 6. exd4 {[%emt 0:01:03]} Qe6+ {[%emt 0:00:30]} 7. Be2 {[%emt 0:02:47]} g5 {[%emt 0:00:32]} 8. Nb5 {[%emt 0:01:13]} Qb6 {[%emt 0:01:56]} 9. Nf3 {[%emt 0:03:10]} a6 {[%emt 0:02:18]} 10. Nc3 {[%emt 0:01:05]} Nf6 {[%emt 0:06:50]} 11. Bxg5 {[%emt 0:00:43]} hxg5 {[%emt 0:00:34]} 12. Nxg5 {[%emt 0:00:19]} Rg8 {[%emt 0:04:15]} 13. Nf3 {[%emt 0:03:44]} Qxb2 {[%emt 0:02:31]} 14. Na4 {[%emt 0:01:04]} Qb4+ {[%emt 0:03:02]} 0-1

[Event "Austrian Championship Boys-U12 2024"]
[Site "Fuerstenfeld"]
[Date "2024.06.01"]
[Round "6.5"]
[White "Schinwald, Florian"]
[Black "Slavskyi, Maksym"]
[Result "1-0"]
[ECO "C42"]
[WhiteElo "1521"]
[BlackElo "1660"]
[Annotator "NA RC"]
[PlyCount "57"]
[EventDate "2024.05.28"]
[EventType "swiss"]
[EventCountry "AUT"]
[SourceTitle "playchess.com"]
[Source "ChessBase"]
[SourceQuality "1"]
[TimeControl "5400+30"]

1. e4 {[%emt 0:00:02]} e5 {[%emt 0:00:02]} 2. Nf3 {[%emt 0:00:04]} Nf6 {[%emt 0:00:04]} 3. Nxe5 {[%emt 0:00:06]} d6 {[%emt 0:00:01]} 4. Nf3 {[%emt 1:32:18]} Nxe4 {[%emt 0:00:05]} 5. Nc3 {[%emt 0:00:00]} Nxc3 {[%emt 1:32:48]} 6. dxc3 {[%emt 0:00:00]} Be7 {[%emt 0:00:00]} 7. Bf4 {[%emt 0:00:00]} Bg4 {[%emt 0:00:00]} 8. h3 {[%emt 0:00:00]} Bh5 {[%emt 0:00:00]} 9. g4 {[%emt 0:00:00]} Bg6 {[%emt 0:00:00]} 10. Qd2 {[%emt 0:00:00]} Qd7 {[%emt 0:00:00]} 11. Bc4 {[%emt 0:00:00]} a6 {[%emt 0:00:00]} 12. Qe2 {[%emt 0:00:00]} Qc6 {[%emt 0:00:00]} 13. Bd3 {[%emt 0:00:00]} Nd7 {[%emt 0:00:00]} 14. O-O-O {[%emt 0:00:00]} O-O-O {[%emt 0:00:00]} 15. Nd4 {[%emt 0:00:00]} Qa4 {[%emt 0:00:00]} 16. Qxe7 {[%emt 0:00:00]} Rhe8 {[%emt 0:00:00]} 17. Qh4 {[%emt 0:00:00]} c5 {[%emt 0:00:00]} 18. b3 {[%emt 0:00:00]} Qa3+ {[%emt 0:00:00]} 19. Kb1 {[%emt 0:00:00]} cxd4 {[%emt 0:00:00]} 20. cxd4 {[%emt 0:00:00]} Bxd3 {[%emt 0:00:00]} 21. Rxd3 {[%emt 0:00:00]} Re2 {[%emt 0:00:00]} 22. Rc3+ {[%emt 0:00:00]} Nc5 {[%emt 0:00:00]} 23. dxc5 {[%emt 0:00:00]} Qb4 {[%emt 0:00:00]} 24. Rc4 {[%emt 0:00:00]} Re1+ {[%emt 0:00:00]} 25. Kb2 {[%emt 0:00:00]} Qa5 {[%emt 0:00:00]} 26. cxd6+ {[%emt 0:00:00]} Kd7 {[%emt 0:00:00]} 27. Rc7+ {[%emt 0:00:00]} Ke8 {[%emt 0:00:00]} 28. Rxe1+ {[%emt 0:00:00]} Qxe1 {[%emt 0:00:00]} 29. Re7+ {[%emt 0:00:00]} 1-0

[Event "Austrian Championship Boys-U12 2024"]
[Site "Fuerstenfeld"]
[Date "2024.06.01"]
[Round "6.6"]
[White "Safonov, Lev"]
[Black "Atlas, Daniel"]
[Result "0-1"]
[ECO "C54"]
[WhiteElo "1473"]
[BlackElo "1629"]
[Annotator "NA RC"]
[PlyCount "68"]
[EventDate "2024.05.28"]
[EventType "swiss"]
[EventCountry "AUT"]
[SourceTitle "playchess.com"]
[Source "ChessBase"]
[SourceQuality "1"]
[TimeControl "5400+30"]

1. e4 {[%emt 0:00:03]} e5 {[%emt 0:00:03]} 2. Bc4 {[%emt 0:00:08]} Nf6 {[%emt 0:00:06]} 3. d3 {[%emt 0:00:03]} Bc5 {[%emt 0:00:26]} 4. Nf3 {[%emt 0:00:10]} Nc6 {[%emt 0:00:24]} 5. O-O {[%emt 0:00:14]} O-O {[%emt 0:00:30]} 6. Re1 {[%emt 0:00:42]} d6 {[%emt 0:00:09]} 7. c3 {[%emt 0:00:23]} a6 {[%emt 0:00:59]} 8. d4 {[%emt 0:05:53]} Ba7 {[%emt 0:03:23]} 9. h3 {[%emt 0:07:38]} Re8 {[%emt 0:00:50]} 10. dxe5 {[%emt 0:06:52]} Nxe5 {[%emt 0:01:57]} 11. Bb3 {[%emt 0:01:39]} Be6 {[%emt 0:02:21]} 12. Nd4 {[%emt 0:06:51]} Bxb3 {[%emt 0:02:24]} 13. Qxb3 {[%emt 0:05:31]} Nd3 {[%emt 0:01:47]} 14. Rd1 {[%emt 0:04:24]} Nxe4 {[%emt 0:09:35]} 15. Qxb7 {[%emt 0:10:06]} Qf6 {[%emt 0:12:26]} 16. Rxd3 {[%emt 0:07:38]} Nc5 {[%emt 0:00:19]} 17. Qf3 {[%emt 0:04:32]} Nxd3 {[%emt 0:00:55]} 18. Qxd3 {[%emt 0:00:19]} Bxd4 {[%emt 0:01:01]} 19. cxd4 {[%emt 0:04:25]} Re1+ {[%emt 0:00:13]} 20. Kh2 {[%emt 0:00:10]} Rxc1 {[%emt 0:01:06]} 21. Qe3 {[%emt 0:01:33]} Qh6 {[%emt 0:02:06]} 22. f4 {[%emt 0:02:05]} Rf1 {[%emt 0:04:01]} 23. g3 {[%emt 0:00:26]} Qe6 {[%emt 0:01:07]} 24. Qxe6 {[%emt 0:01:46]} fxe6 {[%emt 0:00:03]} 25. a4 {[%emt 0:00:56]} Rb8 {[%emt 0:00:22]} 26. b3 {[%emt 0:00:39]} Rxb3 {[%emt 0:00:14]} 27. Nd2 {[%emt 0:00:35]} Rf2+ {[%emt 0:00:35]} 28. Kg1 {[%emt 0:00:11]} Rxd2 {[%emt 0:00:08]} 29. Re1 {[%emt 0:00:24]} Rxg3+ {[%emt 0:00:23]} 30. Kf1 {[%emt 0:00:41]} Kf7 {[%emt 0:00:16]} 31. h4 {[%emt 0:00:52]} Rgg2 {[%emt 0:00:03]} 32. Ra1 {[%emt 0:00:55]} Rc2 {[%emt 0:01:00]} 33. Ke1 {[%emt 0:00:43]} Rg4 {[%emt 0:00:06]} 34. f5 {[%emt 0:01:02]} Rg1# {[%emt 0:56:12]} 0-1